[Event "IIFL Wealth  4th Mumbai Junior U-13"]
[Site "Mumbai"]
[Date "2019.01.05"]
[Round "7"]
[White "Singh, Arjun Kumar"]
[Black "Arhan Chethan Anand"]
[Result "1/2-1/2"]
[ECO "A06"]
[WhiteElo "1461"]
[BlackElo "1710"]
[Annotator "NA RC"]
[PlyCount "142"]
[EventDate "2018.12.30"]
[EventType "swiss"]
[EventCountry "IND"]
[SourceTitle "playchess.com"]
[Source "ChessBase"]
[SourceQuality "1"]
[TimeControl "40/5400+30:1800+30"]

1. Nf3 {[%emt 0:01:19]} d5 {[%emt 0:00:00]} 2. g3 {[%emt 0:00:19]} Bg4 {[%emt 0:00:00]} 3. Bg2 {[%emt 0:00:14]} c6 {[%emt 0:00:03]} 4. c4 {[%emt 0:00:14]} Nf6 {[%emt 0:02:15]} 5. cxd5 {[%emt 0:00:26]} cxd5 {[%emt 0:00:22]} 6. O-O {[%emt 0:01:33]} Nc6 {[%emt 0:00:54]} 7. d4 {[%emt 0:00:20]} e6 {[%emt 0:01:18]} 8. Bf4 {[%emt 0:03:56]} Be7 {[%emt 0:06:39]} 9. Nc3 {[%emt 0:00:45]} O-O {[%emt 0:00:18]} 10. Rc1 {[%emt 0:03:15]} Rc8 {[%emt 0:03:25]} 11. Qd2 {[%emt 0:02:30]} Bb4 {[%emt 0:14:45]} 12. Ne5 {[%emt 0:12:02]} Bf5 {[%emt 0:07:45]} 13. a3 {[%emt 0:00:53]} Bxc3 {[%emt 0:02:23]} 14. Rxc3 {[%emt 0:00:29]} Nxe5 {[%emt 0:07:23]} 15. Rxc8 {[%emt 0:01:56]} Qxc8 {[%emt 0:00:03]} 16. Bxe5 {[%emt 0:00:10]} Ne8 {[%emt 0:08:15]} 17. Rc1 {[%emt 0:01:11]} Qd8 {[%emt 0:00:06]} 18. Qb4 {[%emt 0:02:38]} f6 {[%emt 0:00:38]} 19. Bf4 {[%emt 0:00:06]} g5 {[%emt 0:00:25]} 20. Bd2 {[%emt 0:00:13]} Rf7 {[%emt 0:03:15]} 21. Qc5 {[%emt 0:00:33]} b6 {[%emt 0:05:04]} 22. Qc8 {[%emt 0:02:26]} Rd7 {[%emt 0:04:16]} 23. Qxd8 {[%emt 0:01:28]} Rxd8 {[%emt 0:00:01]} 24. Kf1 {[%emt 0:00:14]} Kf7 {[%emt 0:00:13]} 25. Ke1 {[%emt 0:00:05]} Ke7 {[%emt 0:00:39]} 26. e3 {[%emt 0:01:45]} Bd3 {[%emt 0:03:00]} 27. Bb4+ {[%emt 0:00:41]} Kd7 {[%emt 0:00:57]} 28. Kd2 {[%emt 0:00:10]} Bc4 {[%emt 0:01:40]} 29. e4 {[%emt 0:01:00]} a5 {[%emt 0:01:12]} 30. Bc3 {[%emt 0:00:11]} Nd6 {[%emt 0:02:15]} 31. exd5 {[%emt 0:00:17]} Bxd5 {[%emt 0:00:55]} 32. Bxd5 {[%emt 0:00:08]} exd5 {[%emt 0:00:03]} 33. Kd3 {[%emt 0:00:13]} Re8 {[%emt 0:01:35]} 34. f3 {[%emt 0:01:31]} Nc4 {[%emt 0:00:47]} 35. h4 {[%emt 0:06:08]} Re3+ {[%emt 0:02:16]} 36. Kc2 {[%emt 0:00:08]} Rxf3 {[%emt 0:02:22]} 37. hxg5 {[%emt 0:00:25]} fxg5 {[%emt 0:00:07]} 38. Rh1 {[%emt 0:00:07]} Rf7 {[%emt 0:02:40]} 39. Rh6 {[%emt 0:00:30]} Kc7 {[%emt 0:01:03]} 40. Rh5 {[%emt 0:00:00]} Rg7 {[%emt 0:00:00]} 41. Bd2 {[%emt 0:00:43]} Nxd2 {[%emt 0:05:24]} 42. Kxd2 {[%emt 0:01:41]} Kc6 {[%emt 0:08:58]} 43. Rh6+ {[%emt 0:00:17]} Kb5 {[%emt 0:00:59]} 44. b3 {[%emt 0:03:20]} a4 {[%emt 0:01:44]} 45. bxa4+ {[%emt 0:00:07]} Kc4 {[%emt 0:01:08]} 46. Rxb6 {[%emt 0:00:15]} Kxd4 {[%emt 0:00:02]} 47. a5 {[%emt 0:00:34]} Kc5 {[%emt 0:00:44]} 48. a4 {[%emt 0:01:08]} Ra7 {[%emt 0:00:35]} 49. Rb5+ {[%emt 0:00:06]} Kc4 {[%emt 0:00:30]} 50. g4 {[%emt 0:00:35]} Ra6 {[%emt 0:04:51]} 51. Kc2 {[%emt 0:00:30]} h6 {[%emt 0:01:44]} 52. Kd2 {[%emt 0:00:14]} Ra8 {[%emt 0:01:35]} 53. Kc2 {[%emt 0:00:11]} d4 {[%emt 0:02:30]} 54. Kd2 {[%emt 0:00:45]} Ra7 {[%emt 0:01:51]} 55. Kc2 {[%emt 0:00:53]} Ra6 {[%emt 0:07:20]} 56. Kd2 {[%emt 0:00:18]} Ra8 {[%emt 0:00:06]} 57. Kc2 {[%emt 0:00:17]} Rf8 {[%emt 0:00:27]} 58. a6 {[%emt 0:00:17]} Ra8 {[%emt 0:05:36]} 59. Rb6 {[%emt 0:01:03]} Ra7 {[%emt 0:00:40]} 60. a5 {[%emt 0:01:15]} Ra8 {[%emt 0:01:10]} 61. Rxh6 {[%emt 0:01:37]} Ra7 {[%emt 0:00:39]} 62. Rg6 {[%emt 0:04:06]} Ra8 {[%emt 0:00:15]} 63. Rc6+ {[%emt 0:00:33]} Kb5 {[%emt 0:00:23]} 64. Rg6 {[%emt 0:00:40]} Kc4 {[%emt 0:00:34]} 65. Rxg5 {[%emt 0:01:57]} Rxa6 {[%emt 0:00:10]} 66. Rf5 {[%emt 0:00:05]} Rh6 {[%emt 0:00:31]} 67. g5 {[%emt 0:01:00]} Rh2+ 68. Kd1 Kd3 69. Rf3+ Ke4 70. Ra3 d3 71. a6 Ke3 1/2-1/2

[Event "IIFL Wealth  4th Mumbai Junior U-13"]
[Site "Mumbai"]
[Date "2019.01.05"]
[Round "7"]
[White "Nanal Arnav"]
[Black "Savitha Shri B"]
[Result "1-0"]
[ECO "A48"]
[WhiteElo "1456"]
[BlackElo "1894"]
[Annotator "NA RC"]
[PlyCount "69"]
[EventDate "2018.12.30"]
[EventType "swiss"]
[EventCountry "IND"]
[SourceTitle "playchess.com"]
[Source "ChessBase"]
[SourceQuality "1"]
[TimeControl "40/5400+30:1800+30"]

{[%evp 25,67,0,32767,132,199,154,148,151,141,32767,32767,32767,32767,32767,32767,234,211,231,231,228,519,588,606,631,624,32767,720,552,772,787,1144,32767,32767,32767,32767,32767,32767,32767,32767,815,1089,997,983,1061]} 1. d4 {[%emt 0:02:14]} Nf6 {[%emt 0:00:00]} 2. Nf3 {[%emt 0:00:12]} g6 {[%emt 0:00:00]} 3. c3 {[%emt 0:00:11]} Bg7 {[%emt 0:00:00]} 4. Bf4 {[%emt 0:00:08]} O-O {[%emt 0:00:00]} 5. h3 {[%emt 0:00:06]} d6 {[%emt 0:01:32]} 6. e3 {[%emt 0:00:06]} Nbd7 {[%emt 0:00:29]} 7. Be2 {[%emt 0:00:06]} b6 {[%emt 0:00:38]} 8. O-O {[%emt 0:00:15]} Bb7 {[%emt 0:00:08]} 9. Nbd2 {[%emt 0:00:08]} Qe8 {[%emt 0:06:20]} 10. a4 {[%emt 0:02:54] A48: 1 d4 Nf6 2 Nf3 g6: Torre, London and Colle Systems} e5 {[%emt 0:06:45]} (10... a6 11. Qc2 e5 12. dxe5 dxe5 13. Bh2 e4 14. Nd4 Ne5 15. a5 b5 16. c4 b4 17. c5 Bd5 {0-1 (32) Vovk,Y (2617)-Wei,Y (2734) Baku 2015}) 11. Bh2 {[%emt 0:00:00]} e4 12. Ne1 Qe7 {[%emt 0:01:47]} 13. Nc2 {[%emt 0:03:27]} Rac8 $146 {[%emt 0:07:52]} ({Predecessor:} 13... a6 14. a5 b5 15. b4 Nd5 16. Ra3 c6 17. c4 N5f6 {1-0 (41) Caron,S-Harman,K (1610) ICCF email 2016}) 14. a5 {[%emt 0:03:54]} Ne8 {[%emt 0:09:16]} (14... Ra8 $16) 15. axb6 {[%emt 0:06:27]} axb6 {[%emt 0:00:01]} 16. Ra7 {[%emt 0:04:14]} Bc6 {[%emt 0:01:11]} 17. Nc4 {[%emt 0:11:53]} d5 {[%emt 0:01:31]} 18. Nb4 {[%emt 0:04:02]} Qe6 {[%emt 0:04:20]} 19. Na3 {[%emt 0:05:20]} Nb8 {[%emt 0:01:42]} 20. Qb3 {[%emt 0:09:18]} Nd6 {[%emt 0:06:20]} 21. Ra1 {[%emt 0:08:59]} Rfd8 {[%emt 0:04:34]} 22. Ba6 {[%emt 0:05:14]} Nxa6 $2 {[%emt 0:00:25]} (22... Bf8 23. Bf4 Be7) 23. Nxc6 {[%emt 0:00:18]} Nb8 {[%emt 0:14:41]} 24. Nxd8 {[%emt 0:01:49]} Rxd8 {[%emt 0:00:01]} 25. Nb5 {[%emt 0:07:11]} Nc6 {[%emt 0:03:37]} 26. Nxc7 {[%emt 0:02:44]} Qf5 {[%emt 0:03:29]} 27. Ra8 {[%emt 0:01:51]} Nc4 {[%emt 0:02:31]} 28. Rxd8+ {[%emt 0:02:53]} Nxd8 {[%emt 0:00:03]} 29. Ra8 {[%emt 0:01:56]} Bf6 {[%emt 0:00:26]} 30. Qb5 {[%emt 0:06:36]} Bh4 {[%emt 0:02:32]} 31. Bf4 Kg7 {[%emt 0:10:26]} 32. Qxd5 {[%emt 0:01:14]} (32. g4 $142) 32... Nxb2 {[%emt 0:04:16]} 33. Qxf5 {[%emt 0:00:55]} gxf5 {[%emt 0:00:03]} 34. g3 $18 {[%emt 0:00:24]} Bf6 {[%emt 0:00:52]} 35. Ne8+ {[%emt 0:00:11]} 1-0

[Event "IIFL Wealth  4th Mumbai Junior U-13"]
[Site "Mumbai"]
[Date "2019.01.05"]
[Round "7"]
[White "Sairaj Dilip Vernekar"]
[Black "Larmet, Nino"]
[Result "1-0"]
[ECO "C54"]
[WhiteElo "1445"]
[BlackElo "1835"]
[Annotator "NA RC"]
[PlyCount "83"]
[EventDate "2018.12.30"]
[EventType "swiss"]
[EventCountry "IND"]
[SourceTitle "playchess.com"]
[Source "ChessBase"]
[SourceQuality "1"]
[TimeControl "40/5400+30:1800+30"]

1. e4 {[%emt 0:00:00]} e5 {[%emt 0:00:00]} 2. Nf3 {[%emt 0:00:00]} Nc6 {[%emt 0:00:03]} 3. d4 {[%emt 0:00:40]} exd4 {[%emt 0:00:09]} 4. Bc4 {[%emt 0:00:38]} Bc5 {[%emt 0:02:41]} 5. c3 {[%emt 0:00:39]} Nf6 {[%emt 0:01:29]} 6. e5 {[%emt 0:01:33]} d5 {[%emt 0:00:24]} 7. Bb5 {[%emt 0:01:32]} Ne4 {[%emt 0:01:59]} 8. cxd4 {[%emt 0:02:31]} Bb6 {[%emt 0:07:34]} 9. O-O {[%emt 0:12:55]} O-O {[%emt 0:05:20]} 10. Nc3 {[%emt 0:09:28]} Bg4 {[%emt 0:01:19] LiveBook: 3 Games C54: Giuoco Piano: 4 c3 Nf6, main lines with 5 d4 and 5 d3} 11. Bxc6 {[%emt 0:01:43]} (11. Be3 f5 12. Ne2 Bxf3 13. gxf3 Ng5 14. Nf4 Nxd4 15. Bxd4 Bxd4 16. h4 Bxe5 17. Qxd5+ Qxd5 18. Nxd5 Nxf3+ {0-1 (27) Galkin,A (2590)-Winants,L (2516) playchess.com INT 2007}) 11... bxc6 {[%emt 0:00:02]} 12. Be3 {[%emt 0:00:52]} f6 {[%emt 0:05:12]} 13. Nxe4 {[%emt 0:07:14]} dxe4 {[%emt 0:00:14]} 14. Qb3+ {[%emt 0:00:05]} Kh8 {[%emt 0:14:35]} 15. Nd2 {[%emt 0:00:26] [#]} Bf5 $146 {[%emt 0:24:26]} (15... f5 $1 $17 16. f3 Bxd4) ({Predecessor:} 15... Bxd4 16. exf6 Bxf6 17. Nxe4 Rb8 18. Qa4 Bxb2 {1-0 (33) Panainte,A (1850)-Firaru,R (1835) Calimanesti Caciulata 2017}) 16. Qc3 {[%emt 0:12:46]} Qd5 {[%emt 0:03:33]} 17. Nc4 {[%emt 0:02:20]} Rad8 {[%emt 0:07:54]} 18. exf6 {[%emt 0:07:24]} gxf6 {[%emt 0:00:02]} 19. Rfd1 {[%emt 0:07:11]} Rg8 {[%emt 0:01:48]} 20. Kf1 {[%emt 0:08:18]} Bg4 {[%emt 0:05:55]} 21. Rd2 {[%emt 0:03:56]} Qh5 {[%emt 0:01:38]} 22. Bf4 {[%emt 0:01:50]} Bf3 {[%emt 0:09:45]} 23. gxf3 {[%emt 0:11:11]} exf3 {[%emt 0:00:02]} 24. Bg3 {[%emt 0:00:08]} Qh3+ {[%emt 0:01:42]} 25. Ke1 {[%emt 0:00:07]} Qg2 {[%emt 0:00:42]} 26. Rdd1 {[%emt 0:00:57]} Rge8+ {[%emt 0:00:36]} 27. Ne3 {[%emt 0:01:04] [#]} (27. Kd2 $142 Bxd4 {[%mdl 64] Double Attack} 28. Qb3 Bxf2+ {[%mdl 64] Discovered Attack} 29. Kc3 Bxg3 30. hxg3) 27... Ba5 $4 {[%emt 0:00:13]} (27... Rxe3+ $1 $19 {[%mdl 512]} 28. Qxe3 Ba5+ 29. Qc3 Bxc3+ 30. bxc3 Re8+ 31. Kd2 Re2+ 32. Kd3 Qh3) 28. Qxa5 {[%emt 0:01:35] Double Attack} Rxe3+ {[%emt 0:00:02]} 29. Kd2 {[%emt 0:00:12]} Re2+ {[%emt 0:03:26]} 30. Kc3 {[%emt 0:01:02]} Qh3 {[%emt 0:00:54]} 31. Qxc7 {[%emt 0:00:58]} Rd7 $18 {[%emt 0:00:48]} 32. Qxc6 {[%emt 0:00:41]} Qf5 {[%emt 0:00:01]} 33. Kb3 {[%emt 0:03:08]} Qd5+ {[%emt 0:01:31]} 34. Qxd5 {[%emt 0:00:09]} Rxd5 {[%emt 0:00:02]} 35. Kc4 {[%emt 0:00:20]} Rd8 {[%emt 0:00:02]} 36. b3 {[%emt 0:00:28]} Rc2+ {[%emt 0:00:10]} 37. Kb4 {[%emt 0:00:29]} Rd5 {[%emt 0:00:17]} 38. a4 {[%emt 0:00:21]} a5+ {[%emt 0:00:37]} 39. Ka3 {[%emt 0:00:06]} Rc3 {[%emt 0:00:12]} 40. Kb2 {[%emt 0:00:00]} Rc8 {[%emt 0:00:00]} 41. Rac1 {[%emt 0:00:57]} Rcd8 {[%emt 0:02:26]} 42. Rc4 {[%emt 0:00:06]} 1-0

[Event "IIFL Wealth  4th Mumbai Junior U-13"]
[Site "Mumbai"]
[Date "2019.01.05"]
[Round "7"]
[White "Athalye Varad"]
[Black "Krishnan Ritvik"]
[Result "1/2-1/2"]
[ECO "B34"]
[WhiteElo "1442"]
[BlackElo "1812"]
[Annotator "NA RC"]
[PlyCount "92"]
[EventDate "2018.12.30"]
[EventType "swiss"]
[EventCountry "IND"]
[SourceTitle "playchess.com"]
[Source "ChessBase"]
[SourceQuality "1"]
[TimeControl "40/5400+30:1800+30"]

{[%evp 23,86,0,32767,-45,0,32767,32767,-46,32767,66,79,67,104,40,33,34,34,36,35,28,32767,32767,32767,32767,32767,32767,28,35,38,31,32,31,46,32767,32767,32767,32767,32767,0,32767,24,18,32767,32767,20,16,10,16,8,32767,32767,32767,32767,4,13,4,32767,0,4,0,0,0,0,0,0]} 1. e4 {[%emt 0:00:00]} c5 {[%emt 0:00:00]} 2. Nf3 {[%emt 0:00:00]} Nc6 {[%emt 0:00:00]} 3. d4 {[%emt 0:00:00]} cxd4 {[%emt 0:00:00]} 4. Nxd4 {[%emt 0:00:00]} Nf6 {[%emt 0:00:06]} 5. Nc3 {[%emt 0:00:00]} e5 {[%emt 0:00:32]} 6. Ndb5 {[%emt 0:00:06]} d6 {[%emt 0:00:06]} 7. a4 {[%emt 0:00:04]} a6 {[%emt 0:00:20]} 8. Na3 {[%emt 0:00:12]} Bg4 {[%emt 0:00:04]} 9. f3 {[%emt 0:04:05]} Be6 {[%emt 0:00:05]} 10. Bc4 {[%emt 0:00:04] B33: Sicilian: Pelikan and Sveshnikov Variations} Be7 {[%emt 0:01:58]} 11. Be3 {[%emt 0:04:25]} O-O {[%emt 0:00:27]} 12. O-O {[%emt 0:01:41] LiveBook: 3 Games} Rc8 {[%emt 0:01:19]} 13. Bb3 $146 {[%emt 0:15:24]} ({Predecessor:} 13. Nd5 $11 Bxd5 14. exd5 Nb8 15. Be2 Nbd7 16. Nc4 Nh5 17. Qd2 h6 {0-1 (53) Giaccio,A (2470)-Vasquez Schroder,R (2521) Dos Hermanas 2004}) 13... Bxb3 {[%emt 0:02:05]} 14. cxb3 {[%emt 0:00:41]} Nb4 {[%emt 0:01:22]} 15. Nc4 {[%emt 0:03:23]} Qc7 {[%emt 0:01:34]} 16. Rc1 {[%emt 0:04:29]} Qb8 {[%emt 0:01:47]} 17. Nb6 {[%emt 0:08:55]} Rc6 {[%emt 0:00:58]} 18. Ncd5 {[%emt 0:02:30]} Nbxd5 {[%emt 0:00:40]} 19. Nxd5 {[%emt 0:02:19]} Nxd5 {[%emt 0:00:16]} 20. Qxd5 {[%emt 0:00:48]} Rfc8 {[%emt 0:00:15]} 21. Rc4 {[%emt 0:01:36]} h6 {[%emt 0:13:15]} 22. Rfc1 {[%emt 0:02:46]} Qc7 {[%emt 0:01:13]} 23. Qd3 {[%emt 0:01:12]} Qd7 {[%emt 0:00:43]} 24. Qd5 {[%emt 0:07:08]} Bf8 {[%emt 0:09:12]} 25. a5 {[%emt 0:11:00]} Kh7 {[%emt 0:07:11]} 26. h3 {[%emt 0:03:44]} Kg8 {[%emt 0:01:39]} 27. Kh2 {[%emt 0:00:12]} Be7 {[%emt 0:00:35]} 28. b4 {[%emt 0:01:36]} Rxc4 29. Rxc4 {[%emt 0:00:07]} Rxc4 {[%emt 0:00:25]} 30. Qxc4 {[%emt 0:00:05]} Qc6 {[%emt 0:00:05]} 31. b3 {[%emt 0:00:31]} Kf8 {[%emt 0:02:02]} 32. b5 {[%emt 0:02:14]} Qxc4 {[%emt 0:00:55]} 33. bxc4 {[%emt 0:00:04]} Ke8 {[%emt 0:00:16]} 34. Kg3 {[%emt 0:00:14]} Bd8 {[%emt 0:00:31]} 35. Bd2 {[%emt 0:00:43]} Kd7 {[%emt 0:00:23]} 36. Kf2 {[%emt 0:00:37]} Ke6 {[%emt 0:01:18]} 37. Ke2 {[%emt 0:00:12]} f5 {[%emt 0:00:45]} 38. Kd3 {[%emt 0:00:54]} f4 {[%emt 0:00:40]} 39. Kc2 {[%emt 0:00:50]} Bh4 {[%emt 0:00:48]} 40. Kb3 {[%emt 0:00:00]} Bf2 {[%emt 0:00:00]} 41. Bb4 {[%emt 0:03:24]} Bc5 {[%emt 0:00:47]} 42. Be1 {[%emt 0:00:01]} Bd4 {[%emt 0:00:26]} 43. Bh4 {[%emt 0:01:11]} g5 $11 {[%emt 0:00:10]} 44. Be1 {[%emt 0:00:43]} Bc5 {[%emt 0:00:06]} 45. Ka4 {[%emt 0:06:32]} Kf6 {[%emt 0:00:09]} 46. Kb3 {[%emt 0:00:04]} Kg6 {[%emt 0:00:07]} 1/2-1/2

[Event "IIFL Wealth  4th Mumbai Junior U-13"]
[Site "Mumbai"]
[Date "2019.01.05"]
[Round "7"]
[White "Swara Lakshmi S Nair"]
[Black "Thatavarthy Siva Suhas"]
[Result "0-1"]
[ECO "B78"]
[WhiteElo "1415"]
[BlackElo "1173"]
[Annotator "NA"]
[PlyCount "100"]
[EventDate "2018.12.30"]
[EventType "swiss"]
[EventCountry "IND"]
[SourceTitle "playchess.com"]
[Source "ChessBase"]
[SourceQuality "1"]
[TimeControl "40/5400+30:1800+30"]

1. e4 {[%emt 0:00:22]} c5 {[%emt 0:01:13]} 2. Nf3 {[%emt 0:00:28]} d6 {[%emt 0:00:57]} 3. d4 {[%emt 0:01:18]} cxd4 {[%emt 0:00:42]} 4. Nxd4 {[%emt 0:01:54]} Nf6 {[%emt 0:01:15]} 5. Nc3 {[%emt 0:00:35]} g6 {[%emt 0:00:13]} 6. Be3 {[%emt 0:01:54]} Bg7 {[%emt 0:01:02]} 7. f3 {[%emt 0:01:27]} O-O {[%emt 0:00:34]} 8. Qd2 {[%emt 0:02:11]} Nc6 {[%emt 0:00:15]} 9. Bc4 {[%emt 0:01:26]} Bd7 {[%emt 0:01:42]} 10. O-O-O {[%emt 0:01:23]} Qa5 {[%emt 0:01:01]} 11. Bb3 {[%emt 0:02:34]} Rfc8 {[%emt 0:00:33]} 12. Kb1 {[%emt 0:01:47]} Ne5 13. Bg5 {[%emt 0:09:15]} Nc4 {[%emt 0:16:06]} 14. Bxc4 {[%emt 0:04:01]} Rxc4 {[%emt 0:01:42]} 15. Nb3 {[%emt 0:02:47]} Qa6 {[%emt 0:16:39]} 16. h4 {[%emt 0:15:18]} Be6 {[%emt 0:01:56]} 17. g4 {[%emt 0:11:46]} b5 {[%emt 0:05:55]} 18. Bh6 {[%emt 0:04:40]} Bxh6 {[%emt 0:16:13]} 19. Qxh6 {[%emt 0:00:11]} Rac8 {[%emt 0:00:06]} 20. Rd2 {[%emt 0:02:08]} b4 {[%emt 0:02:12]} 21. Ne2 {[%emt 0:01:33]} Qb6 {[%emt 0:07:26]} 22. Ned4 {[%emt 0:01:43]} d5 {[%emt 0:05:10]} 23. e5 {[%emt 0:10:29]} Nd7 {[%emt 0:00:52]} 24. h5 {[%emt 0:00:20]} Nf8 {[%emt 0:00:40]} 25. hxg6 {[%emt 0:14:25]} fxg6 {[%emt 0:00:17]} 26. Ne2 {[%emt 0:01:59]} Bf7 {[%emt 0:03:50]} 27. f4 {[%emt 0:01:35]} Qe3 {[%emt 0:03:31]} 28. Rh3 {[%emt 0:01:15]} Qe4 {[%emt 0:00:34]} 29. Rhd3 {[%emt 0:02:49]} Rxc2 {[%emt 0:01:37]} 30. Ng3 {[%emt 0:00:28]} Qc4 {[%emt 0:01:32]} 31. Ne2 {[%emt 0:00:27]} Rxd2 {[%emt 0:01:41]} 32. Rxd2 {[%emt 0:00:05]} Qe4+ {[%emt 0:00:21]} 33. Ka1 {[%emt 0:00:13]} Rc2 {[%emt 0:02:32]} 34. Rxc2 {[%emt 0:00:19]} Qxc2 {[%emt 0:00:09]} 35. Nec1 {[%emt 0:00:09]} d4 {[%emt 0:00:51]} 36. f5 {[%emt 0:00:21]} Bxb3 {[%emt 0:00:36]} 37. axb3 {[%emt 0:00:19]} Qc7 {[%emt 0:03:34]} 38. Qf4 gxf5 {[%emt 0:01:32]} 39. gxf5 {[%emt 0:00:48]} e6 {[%emt 0:00:37]} 40. f6 {[%emt 0:00:00]} Ng6 {[%emt 0:00:00]} 41. Qg5 {[%emt 0:00:56]} Qxe5 {[%emt 0:01:45]} 42. Qd2 {[%emt 0:00:24]} a5 {[%emt 0:02:32]} 43. Ne2 {[%emt 0:00:15]} Qxf6 {[%emt 0:03:22]} 44. Nxd4 {[%emt 0:00:08]} Qf4 {[%emt 0:01:06]} 45. Qd1 {[%emt 0:00:21]} Qd6 {[%emt 0:01:11]} 46. Qg1 {[%emt 0:02:47]} e5 {[%emt 0:01:41]} 47. Nf5 {[%emt 0:00:24]} Qe6 {[%emt 0:01:11]} 48. Nh6+ {[%emt 0:00:38]} Kg7 {[%emt 0:00:28]} 49. Ng4 {[%emt 0:00:09]} h5 {[%emt 0:04:51]} 50. Ne3 {[%emt 0:00:28]} Qxb3 {[%emt 0:02:40]} 0-1

[Event "IIFL Wealth  4th Mumbai Junior U-13"]
[Site "Mumbai"]
[Date "2019.01.05"]
[Round "7"]
[White "Daakshin Arun"]
[Black "Bhosale Saarth"]
[Result "1-0"]
[ECO "A86"]
[WhiteElo "1400"]
[BlackElo "1066"]
[Annotator "NA RC"]
[PlyCount "67"]
[EventDate "2018.12.30"]
[EventType "swiss"]
[EventCountry "IND"]
[SourceTitle "playchess.com"]
[Source "ChessBase"]
[SourceQuality "1"]
[TimeControl "40/5400+30:1800+30"]

1. d4 {[%emt 0:00:00]} f5 {[%emt 0:00:00]} 2. c4 {[%emt 0:00:00]} Nf6 {[%emt 0:00:08]} 3. g3 {[%emt 0:00:00]} g6 {[%emt 0:00:09]} 4. Bg2 {[%emt 0:00:00]} Bg7 {[%emt 0:00:29]} 5. Nc3 {[%emt 0:00:00]} O-O {[%emt 0:00:40]} 6. Nf3 {[%emt 0:00:13]} d6 {[%emt 0:00:21]} 7. O-O {[%emt 0:00:22]} Qe8 {[%emt 0:00:45]} 8. d5 {[%emt 0:01:21]} Na6 {[%emt 0:02:23]} 9. Be3 {[%emt 0:03:49]} Ng4 {[%emt 0:10:57]} 10. Bd4 {[%emt 0:00:26]} Bxd4 {[%emt 0:09:02]} 11. Qxd4 {[%emt 0:02:17]} Nc5 {[%emt 0:00:52]} 12. b4 {[%emt 0:04:43]} Nd7 {[%emt 0:01:39]} 13. Nb5 {[%emt 0:02:19]} Qd8 {[%emt 0:01:58]} 14. Nxa7 {[%emt 0:05:19]} Nde5 {[%emt 0:00:19]} 15. Nxc8 {[%emt 0:00:19]} Qxc8 {[%emt 0:00:29]} 16. Qc3 {[%emt 0:03:12]} Qd7 {[%emt 0:01:53]} 17. Nxe5 {[%emt 0:00:37]} Nxe5 {[%emt 0:01:00]} 18. c5 {[%emt 0:05:26]} Ra6 {[%emt 0:00:35]} 19. c6 {[%emt 0:02:09]} bxc6 {[%emt 0:03:18]} 20. dxc6 {[%emt 0:00:06]} Qe6 {[%emt 0:00:19]} 21. a4 {[%emt 0:03:52]} Rfa8 {[%emt 0:02:22]} 22. a5 {[%emt 0:01:36]} Kf8 {[%emt 0:03:15]} 23. b5 {[%emt 0:00:15]} R6a7 {[%emt 0:00:19]} 24. b6 {[%emt 0:01:07]} Ra6 {[%emt 0:01:05]} 25. b7 {[%emt 0:00:36]} Rb8 {[%emt 0:00:28]} 26. Rfc1 {[%emt 0:07:00]} d5 {[%emt 0:04:17]} 27. Qd4 {[%emt 0:00:13]} Qf6 {[%emt 0:02:16]} 28. Qxd5 {[%emt 0:01:34]} Rxc6 {[%emt 0:03:01]} 29. Rxc6 {[%emt 0:00:33]} Nxc6 {[%emt 0:00:12]} 30. Rd1 {[%emt 0:00:41]} Rxb7 {[%emt 0:03:11]} 31. Qxc6 {[%emt 0:00:05]} Qxc6 {[%emt 0:00:07]} 32. Rd8+ {[%emt 0:00:35]} Kf7 {[%emt 0:01:04]} 33. Bxc6 {[%emt 0:00:07]} Ra7 {[%emt 0:00:05]} 34. Ra8 {[%emt 0:00:27]} 1-0

[Event "IIFL Wealth  4th Mumbai Junior U-13"]
[Site "Mumbai"]
[Date "2019.01.05"]
[Round "7"]
[White "Renganayaki V"]
[Black "Mahajan Ayush"]
[Result "0-1"]
[ECO "A13"]
[WhiteElo "1376"]
[BlackElo "1629"]
[Annotator "NA RC"]
[PlyCount "66"]
[EventDate "2018.12.30"]
[EventType "swiss"]
[EventCountry "IND"]
[SourceTitle "playchess.com"]
[Source "ChessBase"]
[SourceQuality "1"]
[TimeControl "40/5400+30:1800+30"]

1. c4 e6 2. Nf3 d5 3. g3 Nf6 4. Bg2 Nbd7 5. O-O Bd6 6. b3 O-O 7. Bb2 c6 8. d4 Ne4 9. Nfd2 f5 10. Nxe4 dxe4 11. e3 e5 12. Nc3 Nf6 13. d5 c5 14. Qe2 a6 15. a4 Bd7 16. Qc2 Qc7 17. a5 Rae8 18. Rfe1 g5 19. Bc1 g4 20. h4 gxh3 21. Bxh3 f4 22. Bxd7 Qxd7 23. exf4 exf4 24. Bxf4 Bxf4 25. gxf4 Qg4+ 26. Kf1 Qf3 27. Rac1 e3 28. Rxe3 Rxe3 29. Kg1 Kh8 30. fxe3 Rg8+ 31. Qg6 Rxg6+ 32. Kh2 Rg2+ 33. Kh1 Qh3# 0-1